bitfinex-derivatives/quotes_BTCF0:USTF0_20210406
["timestamp","ask_amount","ask_price","bid_price","bid_amount"]
[1617697508102,3.03371206,58837.0,58830.0,0.29248423]
[1617697508435,0.66022017,58831.0,58829.0,0.29244326]
[1617697509003,0.66021729,58830.0,58829.0,0.29244326]
[1617697509408,0.66021729,58830.0,58828.0,0.29283794]
[1617697509903,0.10725655,58829.0,58828.0,0.29283794]
[1617697510110,0.76747895,58829.0,58828.0,0.29283794]
[1617697510709,0.88302701,58829.0,58828.0,0.29283794]
[1617697511107,0.76747895,58829.0,58828.0,0.29283794]
[1617697511407,0.88302853,58829.0,58828.0,0.29283794]
[1617697512109,0.88302853,58829.0,58828.0,0.29263794]
[1617697512307,0.88302853,58829.0,58824.0,0.410617]
[1617697512847,0.36013852,58825.0,58820.0,0.83981889]
[1617697513108,0.36013852,58825.0,58820.0,0.41032325]
[1617697513409,0.47423544,58821.0,58815.0,0.35028386]
[1617697513710,0.47423544,58821.0,58816.0,1.0]
[1617697513909,0.10725655,58817.0,58816.0,1.0]
[1617697514108,0.10725655,58817.0,58813.0,0.35043338]
[1617697514311,0.10725655,58817.0,58816.0,1.27]
[1617697514508,0.10725655,58817.0,58816.0,1.0]
[1617697514709,0.10725655,58817.0,58815.0,0.35007618]
[1617697514912,0.10725655,58817.0,58816.0,0.27]
[1617697515612,0.46734611,58817.0,58816.0,0.27]
[1617697516011,0.46734611,58817.0,58813.0,0.34991957]
[1617697516213,0.23581655,58817.0,58811.0,0.27]
[1617697516411,0.23581655,58817.0,58814.0,0.27]
[1617697516611,0.23581655,58817.0,58811.0,0.27]
[1617697516813,0.23581655,58817.0,58811.0,1.27]
[1617697517012,0.23581655,58817.0,58815.0,0.27]
[1617697517312,0.23581655,58817.0,58812.0,0.27]
[1617697517512,0.23581655,58817.0,58816.0,0.27]
[1617697517712,0.10725655,58817.0,58816.0,0.27]
[1617697518013,0.10725655,58817.0,58815.0,1.0]
[1617697518413,0.10725655,58817.0,58816.0,1.27]
[1617697518912,0.10725655,58817.0,58816.0,1.0]
[1617697519114,0.10725655,58817.0,58816.0,1.27]
[1617697523617,0.10725655,58817.0,58816.0,0.27]
[1617697523818,0.10725655,58817.0,58816.0,4.87114]
[1617697524023,0.10725655,58817.0,58816.0,4.60114]
[1617697524318,0.10725655,58817.0,58816.0,4.87114]
[1617697524719,0.10725655,58817.0,58816.0,1.37644]
[1617697526824,0.10725655,58817.0,58816.0,0.37644]
[1617697527023,0.10725655,58817.0,58816.0,4.16464]
[1617697528025,0.10725655,58817.0,58816.0,3.27189655]
[1617697528225,0.10725655,58817.0,58816.0,4.27189655]
[1617697529928,0.10725655,58826.0,58816.0,4.27189655]
[1617697530326,0.10725655,58826.0,58816.0,3.27189655]
[1617697530527,0.10725655,58826.0,58825.0,1.0]
[1617697531027,0.10725655,58826.0,58825.0,1.27]
[1617697532028,0.10725655,58826.0,58825.0,4.17345655]
[1617697532629,0.10725655,58826.0,58825.0,9.17345655]
[1617697536532,0.10725655,58826.0,58825.0,3.17345655]
[1617697536952,0.10725655,58826.0,58825.0,4.17345655]
[1617697537935,0.10725655,58826.0,58825.0,3.32606655]
[1617697538137,0.10725655,58826.0,58825.0,9.32606655]
[1617697538836,0.10725655,58826.0,58825.0,3.32606655]
[1617697539238,0.10725655,58826.0,58825.0,4.32606655]
[1617697541143,0.10725655,58826.0,58825.0,3.32606655]
[1617697541343,0.10725655,58826.0,58825.0,4.32606655]
[1617697542456,0.10725655,58826.0,58825.0,3.17345655]
[1617697542659,0.10725655,58826.0,58825.0,4.17345655]
[1617697543867,0.10725655,58826.0,58825.0,4.46638512]
[1617697544654,0.10725655,58826.0,58825.0,9.46638512]
[1617697545347,0.15755655,58826.0,58825.0,9.46638512]
[1617697545648,0.10725655,58826.0,58825.0,9.81758507]
[1617697549352,0.09545655,58826.0,58825.0,9.81758507]
[1617697549552,0.01006175,58840.0,58825.0,9.81758507]
[1617697549754,0.01007609,58838.0,58825.0,10.24355143]
[1617697549953,0.01007609,58838.0,58837.0,0.10725655]
[1617697550153,0.01007609,58838.0,58837.0,1.25593655]
[1617697550355,0.01007609,58838.0,58837.0,1.52593655]
[1617697550959,0.01007609,58838.0,58837.0,4.94843655]
[1617697551156,0.47457541,58843.0,58837.0,5.23825321]
[1617697551554,0.4645,58843.0,58840.0,0.28975403]
[1617697551754,0.01007535,58845.0,58840.0,0.28975403]
[1617697551955,0.01007535,58845.0,58844.0,0.10725655]
[1617697552156,0.01007485,58846.0,58844.0,6.10725655]
[1617697552356,0.01007485,58846.0,58844.0,6.37725655]
[1617697552556,0.43900393,58855.0,58844.0,6.37725655]
[1617697552557,0.01007456,58848.0,58844.0,0.37725655]
[1617697552756,0.01007456,58848.0,58845.0,0.2]
[1617697552959,0.29932318,58853.0,58845.0,6.49026054]
[1617697553156,0.29932318,58853.0,58848.0,0.2]
[1617697553557,0.29932318,58853.0,58852.0,6.31068]
[1617697553758,0.43885997,58878.0,58852.0,7.37410177]
[1617697554154,0.43885997,58878.0,58869.0,0.10725655]
[1617697554305,0.35903424,58880.0,58877.0,3.0023]
[1617697554476,0.35903424,58880.0,58877.0,9.0023]
[1617697554659,0.32023424,58880.0,58878.0,0.2]
[1617697554870,0.32023424,58880.0,58879.0,6.0]
[1617697555161,0.32023424,58880.0,58878.0,0.47]
[1617697555162,0.22636287,58894.0,58878.0,0.27]
[1617697555361,3.045,58902.0,58879.0,1.27]
[1617697555362,0.49859111,58898.0,58879.0,1.27]
[1617697555561,0.49859111,58898.0,58879.0,1.0]
[1617697555761,0.49859111,58898.0,58893.0,4.1823]
[1617697555961,0.22502047,58901.0,58897.0,1.0]
[1617697556361,0.55841457,58904.0,58899.0,1.0]
[1617697556560,0.55841457,58904.0,58898.0,0.27]
[1617697556861,1.05706216,58900.0,58895.0,1.0]
[1617697557161,0.0507,58898.0,58894.0,1.0]
[1617697557364,1.05711849,58896.0,58894.0,1.0]
[1617697557563,1.05711849,58896.0,58895.0,0.27]
[1617697557802,1.23,58895.0,58864.0,3.265]
[1617697557964,1.72866379,58895.0,58883.0,1.0]
[1617697558267,1.23,58895.0,58883.0,1.0]
[1617697558564,3.3026,58888.0,58884.0,0.27]
[1617697558801,1.5581,58887.0,58876.0,1.0]
[1617697559166,0.49871321,58885.0,58876.0,1.0]
[1617697559465,0.4987118,58879.0,58877.0,0.27]
[1617697560066,0.10725655,58878.0,58877.0,0.27]
[1617697560567,0.0514,58877.0,58876.0,1.0]
[1617697561267,0.17904447,58877.0,58876.0,1.0507]
[1617697561466,0.17904447,58877.0,58876.0,1.0]
[1617697561977,0.12764447,58877.0,58876.0,1.0]
[1617697563069,0.12764447,58877.0,58875.0,1.0]
[1617697563272,1.53216,58876.0,58865.0,1.0]
[1617697563470,4.88486,58876.0,58865.0,1.0]
[1617697563734,5.88486,58876.0,58847.0,1.0]
[1617697564013,1.4814,58874.0,58847.0,1.0]
[1617697564182,0.26778655,58848.0,58847.0,1.0]
[1617697564472,0.26778655,58848.0,58846.0,1.0]
[1617697564671,1.49778655,58848.0,58847.0,0.27]
[1617697564872,1.49778655,58848.0,58840.0,1.0]
[1617697565271,1.49778655,58848.0,58839.0,1.0]
[1617697565472,1.49778655,58848.0,58841.0,1.0]
[1617697565677,1.49778655,58848.0,58843.0,1.0]
[1617697565973,1.49778655,58848.0,58845.0,1.0]
[1617697566301,1.49778655,58848.0,58846.0,1.0]
[1617697566709,0.26778655,58848.0,58846.0,1.0]
[1617697566920,0.26778655,58848.0,58840.0,3.1763]
[1617697566921,0.10725655,58848.0,58840.0,3.1763]
[1617697567094,0.10725655,58848.0,58847.0,1.0]
[1617697569375,0.10725655,58848.0,58847.0,1.27]
[1617697569775,0.10725655,58848.0,58847.0,0.27]
[1617697570074,0.10725655,58848.0,58847.0,1.27]
[1617697570274,0.10725655,58848.0,58847.0,1.0]
[1617697570575,0.10725655,58848.0,58847.0,0.27]
[1617697570874,0.10725655,58848.0,58842.0,1.0]
[1617697571075,0.10725655,58848.0,58847.0,0.27]
[1617697571277,0.10725655,58848.0,58841.0,0.15763]
[1617697571574,0.10725655,58848.0,58847.0,0.27]
[1617697571975,0.10725655,58848.0,58844.0,1.0]
[1617697572175,0.10725655,58848.0,58847.0,0.27]
[1617697572374,0.10725655,58848.0,58847.0,1.27]
[1617697572576,0.10725655,58848.0,58847.0,1.0]
[1617697572775,0.10725655,58848.0,58846.0,1.27]
[1617697572975,1.60725655,58848.0,58847.0,0.27]
[1617697573176,1.60725655,58848.0,58818.0,0.14046449]
[1617697573405,1.60725655,58848.0,58737.0,1.0]
[1617697573406,5.40953655,58848.0,58830.0,1.0]
[1617697573676,5.40953655,58848.0,58819.0,1.0]
[1617697573878,5.40953655,58848.0,58831.0,0.27]
[1617697574076,0.10725655,58832.0,58831.0,0.27]
[1617697574277,0.10725655,58832.0,58827.0,1.0]
[1617697574477,0.10725655,58832.0,58828.0,1.27]
[1617697574677,0.10725655,58832.0,58831.0,1.26]
[1617697575079,0.10725655,58832.0,58831.0,1.0]
[1617697575379,0.10725655,58832.0,58831.0,1.27]
[1617697576683,0.10725655,58832.0,58831.0,0.27]
[1617697577083,0.10725655,58832.0,58831.0,1.0]
[1617697577383,0.10725655,58832.0,58831.0,1.27]
[1617697577886,0.10725655,58832.0,58831.0,1.0]
[1617697578088,0.10725655,58832.0,58831.0,1.27]
[1617697578992,0.15895655,58832.0,58831.0,1.27]
[1617697579196,0.10725655,58832.0,58831.0,1.27]
[1617697580500,0.15855655,58832.0,58831.0,1.27]
[1617697580700,0.10725655,58832.0,58831.0,1.27]
[1617697582085,0.10725655,58832.0,58831.0,1.2698]
[1617697582985,0.15835655,58832.0,58831.0,1.2698]
[1617697583185,0.10725655,58832.0,58831.0,1.2698]
[1617697583789,0.10725655,58832.0,58831.0,0.2698]
[1617697584189,1.80725655,58832.0,58831.0,0.56144833]
[1617697584415,1.60725655,58832.0,58831.0,0.29164833]
[1617697584688,1.60725655,58832.0,58826.0,0.29140869]
[1617697584890,0.2,58831.0,58826.0,0.29140869]
[1617697585188,0.2,58831.0,58818.0,0.42739942]
[1617697585189,1.7,58831.0,58821.0,0.29134714]
[1617697585388,1.7,58831.0,58827.0,0.27]
[1617697585789,1.7,58831.0,58820.0,0.29099093]
[1617697585990,1.7,58831.0,58822.0,0.27]
[1617697586192,0.10725655,58823.0,58822.0,0.27]
[1617697586390,0.10725655,58823.0,58820.0,0.29099093]
[1617697586391,3.22495655,58823.0,58820.0,0.29099093]
[1617697586594,3.22495655,58823.0,58821.0,0.27]
[1617697586992,0.23985655,58823.0,58818.0,0.29102836]
[1617697587223,0.23985655,58823.0,58822.0,1.0]
[1617697587492,0.10725655,58823.0,58822.0,1.0]
[1617697587694,0.10725655,58823.0,58822.0,1.27]
[1617697587910,0.10725655,58823.0,58822.0,0.27]
[1617697588302,0.10725655,58823.0,58820.0,0.56054818]
[1617697588694,0.10725655,58823.0,58822.0,0.27]
[1617697588995,0.10725655,58823.0,58821.0,0.27]
[1617697589194,0.10725655,58823.0,58822.0,0.27]
[1617697589595,0.10725655,58823.0,58821.0,0.27]
[1617697589906,0.10725655,58823.0,58820.0,0.27]
[1617697590097,0.2,58822.0,58820.0,0.27]
[1617697590397,0.15885655,58823.0,58822.0,0.27]
[1617697590597,0.15885655,58823.0,58812.0,1.0]
[1617697590598,0.15885655,58823.0,58819.0,0.27]
[1617697590796,0.10725655,58823.0,58822.0,0.27]
[1617697591197,2.98735655,58823.0,58817.0,0.27]
[1617697591396,2.98735655,58823.0,58816.0,0.27]
[1617697591797,2.98735655,58823.0,58818.0,0.27]
[1617697591999,2.98735655,58823.0,58816.0,0.27]
[1617697592203,0.10725655,58817.0,58816.0,0.27]
[1617697592397,0.10725655,58817.0,58816.0,0.29023739]
[1617697592697,0.10725655,58817.0,58816.0,0.56023739]
[1617697592898,0.10725655,58817.0,58816.0,0.29023739]
[1617697593097,0.10725655,58817.0,58816.0,1.29023739]
[1617697593297,0.10725655,58817.0,58816.0,1.27]
[1617697599606,0.10725655,58817.0,58816.0,1.56112376]
[1617697600406,0.10725655,58817.0,58816.0,1.27]
[1617697600607,0.10725655,58817.0,58816.0,1.3212]
[1617697600808,0.10725655,58817.0,58816.0,1.27]
[1617697602111,0.10725655,58817.0,58816.0,1.2698]
[1617697607119,0.3584136,58832.0,58816.0,1.2698]
[1617697607522,0.35840202,58835.0,58830.0,1.0]
[1617697607723,0.35840202,58835.0,58830.0,1.13243]
[1617697607921,0.35840202,58835.0,58831.0,1.27]
[1617697608122,0.0509,58834.0,58831.0,0.27]
[1617697608422,0.0509,58834.0,58833.0,0.10725655]
[1617697608622,3.6529,58852.0,58833.0,0.10725655]
[1617697608623,0.35839284,58836.0,58833.0,1.10725655]
[1617697608833,0.35839284,58836.0,58833.0,1.37725655]
[1617697609037,0.35839284,58836.0,58834.0,1.0]
[1617697609438,0.35839284,58836.0,58833.0,0.37725655]
[1617697609439,0.35838887,58837.0,58835.0,1.27]
[1617697609828,0.22517032,58850.0,58833.0,0.10725655]
[1617697609829,0.35805161,58839.0,58836.0,1.0]
[1617697610226,0.35805161,58839.0,58838.0,1.0]
[1617697610428,0.46530816,58839.0,58838.0,1.0]
[1617697610627,0.46530816,58839.0,58834.0,0.27]
[1617697610832,0.46530816,58839.0,58837.0,1.0]
[1617697610833,0.10725655,58839.0,58837.0,1.0]
[1617697611029,0.10725655,58839.0,58838.0,0.27]
[1617697611229,0.10725655,58839.0,58833.0,0.10725655]
[1617697611230,0.10725655,58839.0,58836.0,1.0]
[1617697611429,0.10725655,58839.0,58838.0,0.27]
[1617697611829,0.10725655,58839.0,58837.0,0.27]
[1617697612129,0.10725655,58839.0,58838.0,0.26]
[1617697612431,0.10725655,58839.0,58837.0,1.27]
[1617697612830,0.10725655,58839.0,58838.0,1.27]
[1617697613031,0.10725655,58839.0,58838.0,1.0]
[1617697613433,0.10725655,58839.0,58838.0,1.27]
[1617697614733,0.10725655,58839.0,58838.0,0.27]
[1617697614937,0.10725655,58839.0,58838.0,1.27]
[1617697615133,0.10725655,58839.0,58838.0,1.0]
[1617697615433,0.10725655,58839.0,58838.0,1.27]
[1617697615635,0.10725655,58839.0,58838.0,0.27]
[1617697616038,0.24738655,58839.0,58828.0,1.27]
[1617697616235,0.2,58838.0,58828.0,1.27]
[1617697616436,3.34155655,58829.0,58820.0,0.28855282]
[1617697616636,3.34155655,58829.0,58814.0,0.10725655]
[1617697616637,3.34155655,58829.0,58821.0,1.0]
[1617697616836,3.34155655,58829.0,58821.0,1.27]
[1617697617136,1.551,58828.0,58818.0,1.0]
[1617697617337,1.551,58828.0,58814.0,0.39621006]
[1617697617539,1.551,58828.0,58822.0,0.27]
[1617697617737,0.051,58828.0,58818.0,1.0]
[1617697618037,1.5,58828.0,58823.0,0.27]
[1617697618538,1.5,58828.0,58814.0,0.10725655]
[1617697618738,1.85837661,58828.0,58824.0,0.27]
[1617697619139,1.85837661,58828.0,58814.0,1.10725655]
[1617697619339,0.0502,58827.0,58816.0,0.27]
[1617697619539,0.0502,58827.0,58815.0,0.27]
[1617697619739,0.35837661,58828.0,58820.0,1.0]
[1617697620041,0.35837661,58828.0,58824.0,1.0]
[1617697620239,0.35837661,58828.0,58822.0,1.0]
[1617697620439,3.34155655,58829.0,58825.0,0.27]
[1617697620839,3.34155655,58829.0,58822.0,1.0]
[1617697620840,0.3592836,58826.0,58822.0,1.0]
[1617697621044,0.3592836,58826.0,58823.0,0.27]
[1617697621240,0.3592836,58826.0,58819.0,1.0]
[1617697621442,0.35929284,58823.0,58819.0,1.0]
[1617697621640,0.35929284,58823.0,58818.0,1.0]
[1617697621940,0.35929284,58823.0,58820.0,0.27]
[1617697622141,0.35929999,58822.0,58818.0,1.0]
[1617697622441,0.10725655,58819.0,58818.0,1.0]
[1617697622840,0.10725655,58819.0,58818.0,1.27]
[1617697623544,0.10725655,58819.0,58818.0,0.27]
[1617697624043,0.10725655,58819.0,58817.0,1.0]
[1617697624244,0.10725655,58819.0,58818.0,0.27]
[1617697624445,0.10725655,58819.0,58818.0,1.27]
[1617697624945,0.10725655,58819.0,58818.0,1.0]
[1617697625146,0.10725655,58819.0,58818.0,1.27]
[1617697625448,0.10725655,58819.0,58818.0,0.27]
[1617697625845,0.10725655,58819.0,58812.0,0.55887996]
[1617697626044,0.10725655,58819.0,58818.0,1.0]
[1617697626444,0.10725655,58819.0,58818.0,1.3204]
[1617697626744,0.10725655,58819.0,58818.0,1.27]
[1617697627246,0.10725655,58819.0,58818.0,0.27]
[1617697627650,0.10725655,58819.0,58818.0,1.0]
[1617697628150,0.10725655,58819.0,58818.0,0.27]
[1617697628470,0.46716155,58819.0,58814.0,0.28823784]
[1617697628669,0.46716155,58819.0,58818.0,0.27]
[1617697628850,0.46716155,58819.0,58818.0,1.27]
[1617697629055,0.46716155,58819.0,58818.0,1.0]
[1617697629268,0.46716155,58819.0,58818.0,0.27]
[1617697629269,0.56562286,58819.0,58818.0,0.27]
[1617697629650,0.56562286,58819.0,58811.0,0.3459018]
[1617697629651,3.54501856,58819.0,58816.0,0.27]
[1617697630053,0.79984221,58817.0,58815.0,0.27]
[1617697630353,0.79984221,58817.0,58812.0,0.27]
[1617697630550,0.35607558,58818.0,58816.0,1.0509]
[1617697630752,0.35607558,58818.0,58816.0,0.0509]
[1617697630952,0.35607558,58818.0,58817.0,0.27]
[1617697630953,0.4399151,58818.0,58817.0,0.27]
[1617697631355,0.4399151,58818.0,58817.0,3.821]
[1617697631766,0.35991861,58818.0,58817.0,4.091]
[1617697631966,0.35991861,58818.0,58817.0,3.821]
[1617697632254,0.35989864,58821.0,58817.0,4.37921194]
[1617697632563,0.35989864,58821.0,58820.0,0.24744655]
[1617697632753,0.35989864,58821.0,58820.0,1.24744655]
[1617697633066,0.10725655,58825.0,58820.0,1.24744655]
[1617697633067,0.35987354,58822.0,58820.0,1.51744655]
[1617697633554,0.10725655,58825.0,58820.0,1.51744655]
[1617697633555,0.35987291,58823.0,58820.0,0.80509289]
[1617697633754,0.35987291,58823.0,58821.0,1.0]
[1617697633962,0.35987291,58823.0,58820.0,0.80509289]
[1617697634254,0.35987291,58823.0,58822.0,1.27]
[1617697634455,0.35987291,58823.0,58822.0,1.0]
[1617697634854,0.35987291,58823.0,58822.0,1.27]
[1617697635756,0.35986897,58824.0,58822.0,1.27]
[1617697635955,0.46712314,58825.0,58822.0,1.27]
[1617697636156,0.46712314,58825.0,58824.0,1.0]
[1617697636355,0.46712314,58825.0,58823.0,1.0]
[1617697636558,0.10725655,58825.0,58824.0,1.27]
[1617697636956,0.10725655,58825.0,58824.0,1.0]
[1617697637156,0.10725655,58825.0,58824.0,0.27]
[1617697637395,1.20735538,58825.0,58824.0,1.27]
[1617697637557,1.20735538,58825.0,58824.0,1.0]
[1617697637758,1.20735538,58825.0,58824.0,0.27]
[1617697638159,1.20735538,58825.0,58821.0,1.27]
[1617697638359,1.37464625,58825.0,58821.0,0.27]
[1617697638559,1.37464625,58825.0,58823.0,0.27]
[1617697638773,1.37464625,58825.0,58822.0,0.27]
[1617697638969,1.37464625,58825.0,58817.0,3.11006167]
[1617697638970,0.21823602,58824.0,58819.0,1.0]
[1617697639171,0.16683602,58824.0,58818.0,0.27]
[1617697639359,0.16683602,58824.0,58819.0,0.27]
[1617697639360,1.10139663,58823.0,58819.0,0.27]
[1617697639558,1.1014061,58819.0,58818.0,1.0]
[1617697639758,1.1014061,58819.0,58818.0,0.27]
[1617697639958,1.1014061,58819.0,58817.0,3.11042297]
[1617697640258,1.1014061,58819.0,58818.0,1.6687233]
[1617697640259,0.66086368,58819.0,58818.0,1.6687233]
[1617697640461,0.66086368,58819.0,58818.0,1.12346542]
[1617697640462,0.360462,58819.0,58818.0,1.12346542]
[1617697640861,0.36042875,58820.0,58818.0,2.12346542]
[1617697641160,0.36042875,58820.0,58818.0,1.12346542]
[1617697641360,0.10725655,58825.0,58818.0,1.12346542]
[1617697641361,0.36042537,58821.0,58819.0,1.34773454]
[1617697641959,0.36042537,58821.0,58818.0,0.48658655]
[1617697641960,0.36042537,58821.0,58820.0,0.61801103]
[1617697642158,0.36042537,58821.0,58820.0,1.61801103]
[1617697642463,0.360413,58822.0,58820.0,1.34801103]
[1617697642661,0.360413,58822.0,58820.0,1.61801103]
[1617697642866,0.360413,58822.0,58820.0,0.61801103]
[1617697643162,0.360413,58822.0,58821.0,1.0]
[1617697643365,0.360413,58822.0,58821.0,1.34793223]
[1617697643566,0.360413,58822.0,58821.0,1.61793223]
[1617697643770,0.36040916,58823.0,58821.0,1.61793223]
[1617697644172,0.36040916,58823.0,58821.0,0.61793223]
[1617697644367,0.36041229,58824.0,58822.0,1.34775848]
[1617697644765,0.36041229,58824.0,58823.0,0.27]
[1617697644963,0.36041229,58824.0,58823.0,1.27]
[1617697645263,0.36041229,58824.0,58823.0,1.61724065]
[1617697645466,0.10725655,58833.0,58823.0,1.61724065]
[1617697646063,0.10725655,58833.0,58828.0,1.0]
[1617697646264,0.44047569,58830.0,58825.0,0.34702649]
[1617697646464,0.44047569,58830.0,58829.0,0.27]
[1617697646664,0.44047569,58830.0,58829.0,1.37725655]
[1617697646864,0.44047569,58830.0,58829.0,1.10725655]
[1617697647068,0.8008823,58830.0,58829.0,1.37725655]
[1617697647269,0.8008823,58830.0,58829.0,1.42765655]
[1617697647471,0.8008823,58830.0,58829.0,1.37725655]
[1617697648473,0.8008823,58830.0,58829.0,0.27]
[1617697648677,0.8512823,58830.0,58829.0,0.27]
[1617697648872,0.8512823,58830.0,58825.0,1.27]
[1617697649237,0.8512823,58830.0,58812.0,0.48123363]
[1617697649238,2.4652,58826.0,58823.0,0.27]
[1617697649585,2.4652,58826.0,58810.0,0.48135834]
[1617697649586,0.0502,58825.0,58818.0,1.0]
[1617697649773,3.26614338,58826.0,58824.0,0.27]
[1617697649974,0.30290529,58825.0,58824.0,0.27]
[1617697650175,0.30290529,58825.0,58822.0,0.27]
[1617697650375,1.10372356,58825.0,58819.0,0.27]
[1617697650575,1.10372356,58825.0,58823.0,0.27]
[1617697650778,0.30290529,58825.0,58823.0,0.27]
[1617697651076,0.30290529,58825.0,58820.0,0.27]
[1617697651277,0.80084647,58824.0,58818.0,0.27]
[1617697651576,0.85164647,58824.0,58815.0,0.27]
[1617697651776,0.80084243,58819.0,58815.0,0.27]
[1617697651976,0.80084243,58819.0,58813.0,0.34770578]
[1617697652176,0.80084243,58819.0,58814.0,0.27]
[1617697652379,0.5005015,58824.0,58814.0,0.38852]
[1617697652380,0.36038967,58816.0,58814.0,0.38852]
[1617697652601,0.10725655,58815.0,58814.0,0.11852]
[1617697652784,0.46763448,58815.0,58814.0,0.46571731]
[1617697652987,0.46763448,58815.0,58814.0,1.73571731]
[1617697653181,0.10725655,58815.0,58814.0,1.73571731]
[1617697659286,0.10725655,58815.0,58814.0,2.1598598]
[1617697660186,0.36043289,58819.0,58815.0,0.0516]
[1617697660387,0.3604245,58820.0,58814.0,5.7588598]
[1617697660587,0.3604245,58820.0,58819.0,0.10725655]
[1617697660787,0.36041179,58822.0,58819.0,1.10725655]
[1617697661188,0.44047112,58828.0,58825.0,1.0]
[1617697661588,0.44047112,58828.0,58819.0,5.51380502]
[1617697661589,0.44035806,58830.0,58826.0,0.38572]
[1617697661788,0.44035806,58830.0,58827.0,1.0]
[1617697662189,0.44035523,58831.0,58829.0,1.0]
[1617697662689,0.44035523,58831.0,58830.0,2.69265655]
[1617697662890,0.44035523,58831.0,58830.0,8.96265655]
[1617697663090,0.91894078,58835.0,58830.0,8.96265655]
[1617697663290,0.91894078,58835.0,58830.0,8.69265655]
[1617697663493,0.4786,58835.0,58834.0,0.91457448]
[1617697663893,0.83888044,58835.0,58834.0,1.27]
[1617697664793,0.83888044,58835.0,58834.0,1.61557533]
[1617697664992,0.4786,58835.0,58834.0,1.61557533]
[1617697668396,0.4786,58835.0,58834.0,4.49457533]
[1617697668600,0.83887704,58835.0,58834.0,4.149]
[1617697669599,0.83887704,58835.0,58834.0,3.149]
[1617697669799,0.83887704,58835.0,58834.0,4.149]
[1617697671605,0.83887704,58835.0,58834.0,4.43715525]
[1617697672404,0.83887704,58835.0,58834.0,4.149]
[1617697673506,0.83887704,58835.0,58834.0,3.149]
[1617697674808,1.2789784,58835.0,58834.0,3.149]
[1617697675508,1.2789784,58835.0,58834.0,0.27]
[1617697675712,4.4381784,58835.0,58834.0,0.27]
[1617697675910,4.3879784,58835.0,58830.0,1.0]
[1617697676112,4.28329559,58835.0,58830.0,1.0]
[1617697676510,0.36009469,58831.0,58830.0,1.0]
[1617697676712,0.10725655,58831.0,58826.0,0.28862451]
[1617697676913,0.90743413,58831.0,58830.0,3.525]
[1617697677112,0.54734422,58831.0,58830.0,4.525]
[1617697677313,0.46732757,58831.0,58830.0,4.255]
[1617697677512,0.10725655,58831.0,58830.0,4.525]
[1617697677713,0.36006258,58832.0,58830.0,3.96048081]
[1617697677912,0.36006258,58832.0,58830.0,4.96048081]
[1617697678113,0.83865686,58835.0,58831.0,0.63350226]
[1617697678315,0.83865686,58835.0,58831.0,1.63350226]
[1617697678614,0.4786,58835.0,58834.0,1.0]
[1617697678813,0.53,58835.0,58834.0,1.10725655]
[1617697679014,0.8386587,58835.0,58834.0,1.10725655]
[1617697679415,0.8386587,58835.0,58834.0,1.27]
[1617697681116,0.8386587,58835.0,58834.0,0.27]
[1617697681615,0.8386587,58835.0,58834.0,1.0]
[1617697681820,0.8386587,58835.0,58834.0,1.3206]
[1617697682018,1.27866505,58835.0,58834.0,4.825]
[1617697682217,1.27866505,58835.0,58834.0,4.555]
[1617697682420,0.8386587,58835.0,58834.0,4.825]
[1617697682618,0.8894587,58835.0,58834.0,4.825]
[1617697682822,0.8386587,58835.0,58834.0,4.825]
[1617697684131,0.8386587,58835.0,58834.0,5.11411254]
[1617697684132,0.4786,58835.0,58834.0,5.11411254]
[1617697684524,0.529,58835.0,58834.0,5.4615253]
[1617697684823,0.529,58835.0,58834.0,5.56878185]
[1617697685024,0.4786,58835.0,58834.0,5.56878185]
[1617697686741,0.5303,58835.0,58834.0,5.56878185]
[1617697687026,0.4786,58835.0,58834.0,5.56878185]
[1617697688427,0.4786,58835.0,58834.0,4.56878185]
[1617697688627,0.4786,58835.0,58834.0,5.56878185]
[1617697689729,0.83884974,58835.0,58834.0,5.56878185]
[1617697690929,0.89044974,58835.0,58834.0,5.56878185]
[1617697691127,0.83884974,58835.0,58834.0,5.56878185]
[1617697691734,0.83884974,58835.0,58834.0,5.22136909]
[1617697692131,0.83884974,58835.0,58834.0,5.34890909]
[1617697692334,0.83884974,58835.0,58834.0,5.69597586]
[1617697692735,0.4786,58835.0,58834.0,5.69597586]
[1617697696538,0.529,58835.0,58834.0,5.69597586]
[1617697697145,0.4786,58835.0,58834.0,4.69597586]
[1617697697553,0.4786,58835.0,58834.0,5.69597586]
[1617697697939,0.4786,58835.0,58834.0,5.34890909]
[1617697698841,0.4786,58835.0,58834.0,5.69604141]
[1617697699441,0.4786,58835.0,58834.0,5.34890909]
[1617697702152,0.83865201,58835.0,58834.0,5.34890909]
[1617697702548,0.83865201,58835.0,58834.0,5.05979655]
[1617697702946,0.89035201,58835.0,58834.0,5.05979655]
[1617697703146,0.83865201,58835.0,58834.0,1.50479655]
[1617697704150,0.89015201,58835.0,58834.0,1.50479655]
[1617697704351,0.89015201,58835.0,58834.0,1.37725655]
[1617697704551,0.89015201,58835.0,58834.0,1.66692994]
[1617697704751,0.89015201,58835.0,58834.0,0.55967339]
[1617697704953,4.29895201,58835.0,58834.0,0.27]
[1617697705351,4.73903373,58835.0,58828.0,0.28978244]
[1617697705752,4.73903373,58835.0,58821.0,0.10725655]
[1617697705753,3.9389,58835.0,58834.0,0.27]
[1617697705952,3.9389,58835.0,58829.0,0.27]
[1617697706153,4.739094,58835.0,58829.0,0.27]
[1617697706352,4.739094,58835.0,58828.0,1.0]
[1617697706553,0.36009618,58830.0,58828.0,1.0]
[1617697706752,0.36009618,58830.0,58826.0,0.28983271]
[1617697706954,0.46735273,58830.0,58829.0,1.27]
[1617697707154,0.10725655,58830.0,58827.0,0.27]
[1617697707557,0.10725655,58830.0,58826.0,0.28983271]
[1617697707558,0.57270494,58830.0,58829.0,0.27]
[1617697707856,0.57270494,58830.0,58827.0,1.27]
[1617697708054,0.57270494,58830.0,58827.0,0.27]
[1617697708554,0.36007134,58828.0,58827.0,0.27]
[1617697709854,0.41177134,58828.0,58827.0,1.27]